[Event "Late-Titled-Tuesday-Blitz-May-14-2024"]
[Site "Chess.com"]
[Date "2024.05.14"]
[Round "5"]
[White "BabageldiAnnaberdiyev"]
[Black "Fjal"]
[Result "0-1"]
[WhiteElo "2552"]
[BlackElo "2354"]
[TimeControl "180+1"]
[EndTime "14:56:40 PDT"]
[Termination "Fjal won on time"]

1. e4 {[%clk 0:03:00.9]} 1... d6 {[%clk 0:02:51.5]} 2. d4 {[%clk 0:02:59.8]}
2... g6 {[%clk 0:02:51.9]} 3. Nc3 {[%clk 0:03:00.1]} 3... Bg7 {[%clk 0:02:51.5]}
4. f4 {[%clk 0:03:00.7]} 4... a6 {[%clk 0:02:51.5]} 5. a4 {[%clk 0:02:59.3]}
5... Nc6 {[%clk 0:02:40.3]} 6. Nf3 {[%clk 0:02:59.2]} 6... Bg4 {[%clk 0:02:40]}
7. Be3 {[%clk 0:02:59]} 7... Bxf3 {[%clk 0:02:39.5]} 8. gxf3 {[%clk 0:02:59.9]}
8... e6 {[%clk 0:02:24.5]} 9. h4 {[%clk 0:02:57.9]} 9... Nf6 {[%clk 0:02:20.4]}
10. Kf2 {[%clk 0:02:42.4]} 10... Nh5 {[%clk 0:02:19.4]} 11. Qd2 {[%clk
0:02:36.3]} 11... f5 {[%clk 0:02:18.4]} 12. d5 {[%clk 0:02:25.2]} 12... exd5
{[%clk 0:02:12.5]} 13. exd5 {[%clk 0:02:25.2]} 13... Nb8 {[%clk 0:01:54.5]} 14.
Bd4 {[%clk 0:02:24.6]} 14... O-O {[%clk 0:01:50.2]} 15. Bxg7 {[%clk 0:02:23.9]}
15... Kxg7 {[%clk 0:01:51.1]} 16. Re1 {[%clk 0:02:21.8]} 16... Nd7 {[%clk
0:01:48.7]} 17. a5 {[%clk 0:02:17.3]} 17... Qf6 {[%clk 0:01:44.8]} 18. Re6
{[%clk 0:02:14.9]} 18... Qf7 {[%clk 0:01:44.6]} 19. b4 {[%clk 0:02:12.8]} 19...
Rae8 {[%clk 0:01:43.6]} 20. Bc4 {[%clk 0:02:12.9]} 20... Re7 {[%clk 0:01:10.1]}
21. Rhe1 {[%clk 0:02:08.7]} 21... Rfe8 {[%clk 0:01:10.5]} 22. Qd4+ {[%clk
0:02:07.8]} 22... Kh6 {[%clk 0:01:03.8]} 23. R1e3 {[%clk 0:01:41]} 23... Nf8
{[%clk 0:00:59.7]} 24. Ke2 {[%clk 0:00:43.5]} 24... Nxe6 {[%clk 0:00:46.9]} 25.
dxe6 {[%clk 0:00:44.4]} 25... Qf6 {[%clk 0:00:45.2]} 26. Kd3 {[%clk 0:00:40]}
26... Qxd4+ {[%clk 0:00:26.2]} 27. Kxd4 {[%clk 0:00:40.9]} 27... c6 {[%clk
0:00:26.9]} 28. Ne2 {[%clk 0:00:21.4]} 28... d5 {[%clk 0:00:26.1]} 29. Bd3
{[%clk 0:00:21.3]} 29... Rxe6 {[%clk 0:00:26.2]} 30. Rxe6 {[%clk 0:00:21.1]}
30... Rxe6 {[%clk 0:00:27.1]} 31. c3 {[%clk 0:00:19.9]} 31... Kg7 {[%clk
0:00:23.5]} 32. c4 {[%clk 0:00:20.3]} 32... dxc4 {[%clk 0:00:23]} 33. Bxc4
{[%clk 0:00:21.2]} 33... Rd6+ {[%clk 0:00:23]} 34. Kc5 {[%clk 0:00:21.7]} 34...
Rd2 {[%clk 0:00:22.5]} 35. Kb6 {[%clk 0:00:20.5]} 35... Rc2 {[%clk 0:00:23]} 36.
Bd3 {[%clk 0:00:20.5]} 36... Rd2 {[%clk 0:00:23.4]} 37. Bc4 {[%clk 0:00:20.8]}
37... Rb2 {[%clk 0:00:23.4]} 38. Kc5 {[%clk 0:00:16.9]} 38... Kf6 {[%clk
0:00:22.8]} 39. Nc3 {[%clk 0:00:09.1]} 39... Ke7 {[%clk 0:00:22.5]} 40. Na4
{[%clk 0:00:09.1]} 40... Rc2 {[%clk 0:00:21.3]} 41. Nb6 {[%clk 0:00:09.5]} 41...
Nf6 {[%clk 0:00:20.4]} 42. Kd4 {[%clk 0:00:08.7]} 42... Rf2 {[%clk 0:00:19.5]}
43. Ke3 {[%clk 0:00:07.8]} 43... Rh2 {[%clk 0:00:20]} 44. Na4 {[%clk 0:00:06.2]}
44... Rxh4 {[%clk 0:00:20.2]} 45. Nc5 {[%clk 0:00:06.7]} 45... Nd7 {[%clk
0:00:18.6]} 46. Nxb7 {[%clk 0:00:06.1]} 46... Rh2 {[%clk 0:00:19.2]} 47. Bxa6
{[%clk 0:00:05]} 47... Rb2 {[%clk 0:00:18.8]} 48. b5 {[%clk 0:00:04.1]} 48...
cxb5 {[%clk 0:00:19]} 49. Kd3 {[%clk 0:00:03.8]} 49... Ra2 {[%clk 0:00:18.8]}
50. Kc3 {[%clk 0:00:03.6]} 50... h5 {[%clk 0:00:18.7]} 51. Kb3 {[%clk
0:00:03.7]} 51... Ra1 {[%clk 0:00:19.2]} 52. Bxb5 {[%clk 0:00:02.8]} 52... h4
{[%clk 0:00:17]} 53. a6 {[%clk 0:00:02.2]} 53... h3 {[%clk 0:00:16]} 54. Ba4
{[%clk 0:00:02.5]} 54... Nb6 {[%clk 0:00:15.4]} 0-1

[Event "Late-Titled-Tuesday-Blitz-May-14-2024"]
[Site "Chess.com"]
[Date "2024.05.14"]
[Round "5"]
[White "guineo59"]
[Black "Cherepov_Alexej"]
[Result "0-1"]
[WhiteElo "2218"]
[BlackElo "2406"]
[TimeControl "180+1"]
[EndTime "14:56:43 PDT"]
[Termination "Cherepov_Alexej won by resignation"]

1. d4 {[%clk 0:02:57.2]} 1... d5 {[%clk 0:02:58.8]} 2. Nf3 {[%clk 0:02:57.6]}
2... c6 {[%clk 0:02:58]} 3. c4 {[%clk 0:02:57.5]} 3... dxc4 {[%clk 0:02:57.5]}
4. a4 {[%clk 0:02:57.5]} 4... Nf6 {[%clk 0:02:54.5]} 5. Nc3 {[%clk 0:02:57.4]}
5... Bg4 {[%clk 0:02:53]} 6. Ne5 {[%clk 0:02:56.1]} 6... Bh5 {[%clk 0:02:53]} 7.
Nxc4 {[%clk 0:02:46.2]} 7... e6 {[%clk 0:02:51.7]} 8. f3 {[%clk 0:02:39.4]} 8...
Bb4 {[%clk 0:02:49.5]} 9. Qb3 {[%clk 0:02:19]} 9... a5 {[%clk 0:02:38.7]} 10.
Be3 {[%clk 0:02:18.8]} 10... O-O {[%clk 0:02:26.4]} 11. Rd1 {[%clk 0:02:16.7]}
11... Nd5 {[%clk 0:02:23.1]} 12. Bf2 {[%clk 0:02:16.5]} 12... Nd7 {[%clk
0:02:13.2]} 13. e4 {[%clk 0:02:16.3]} 13... N5f6 {[%clk 0:02:00]} 14. Bd3 {[%clk
0:02:15.2]} 14... b5 {[%clk 0:01:51.7]} 15. Nd2 {[%clk 0:02:02.1]} 15... bxa4
{[%clk 0:01:43.2]} 16. Qxa4 {[%clk 0:02:02.2]} 16... Nb6 {[%clk 0:01:40.4]} 17.
Qxc6 {[%clk 0:02:00.5]} 17... Rc8 {[%clk 0:01:35.3]} 18. Qb5 {[%clk 0:01:54]}
18... Bxc3 {[%clk 0:01:33.6]} 19. bxc3 {[%clk 0:01:53.4]} 19... Rxc3 {[%clk
0:01:33.6]} 20. O-O {[%clk 0:01:52.9]} 20... a4 {[%clk 0:01:21]} 21. d5 {[%clk
0:01:52.5]} 21... Nbd7 {[%clk 0:01:10]} 22. dxe6 {[%clk 0:01:50.9]} 22... fxe6
{[%clk 0:01:09.3]} 23. Bd4 {[%clk 0:01:50.5]} 23... Rc8 {[%clk 0:00:57.5]} 24.
Qxa4 {[%clk 0:01:48.8]} 24... Ne5 {[%clk 0:00:52.4]} 25. Ba6 {[%clk 0:01:31.8]}
25... Ra8 {[%clk 0:00:38.6]} 26. Bxe5 {[%clk 0:01:30.6]} 26... Qb6+ {[%clk
0:00:36.2]} 27. Qd4 {[%clk 0:01:14.3]} 27... Qxa6 {[%clk 0:00:29.5]} 28. Nc4
{[%clk 0:01:14.4]} 28... Qa7 {[%clk 0:00:20]} 29. Ra1 {[%clk 0:00:57.3]} 29...
Qxd4+ {[%clk 0:00:18.9]} 30. Bxd4 {[%clk 0:00:58.2]} 30... Nd7 {[%clk
0:00:17.4]} 31. Rfb1 {[%clk 0:00:50.6]} 31... Rxa1 {[%clk 0:00:16.3]} 32. Rxa1
{[%clk 0:00:50.6]} 32... Bf7 {[%clk 0:00:15.2]} 33. Ne5 {[%clk 0:00:50.5]} 33...
Nxe5 {[%clk 0:00:14.5]} 34. Bxe5 {[%clk 0:00:51.4]} 34... Rd8 {[%clk 0:00:13.5]}
35. Kf2 {[%clk 0:00:51]} 35... h5 {[%clk 0:00:13.2]} 36. h4 {[%clk 0:00:50.8]}
36... Rd2+ {[%clk 0:00:12.4]} 37. Kg3 {[%clk 0:00:50]} 37... Rc2 {[%clk
0:00:11.7]} 38. Ra8+ {[%clk 0:00:49.6]} 38... Kh7 {[%clk 0:00:11.1]} 39. Ra7
{[%clk 0:00:50.5]} 39... Kg8 {[%clk 0:00:11]} 40. Ra8+ {[%clk 0:00:50.5]} 40...
Kh7 {[%clk 0:00:11]} 41. Rf8 {[%clk 0:00:44.7]} 41... Kg6 {[%clk 0:00:08.8]} 42.
Kh3 {[%clk 0:00:42.5]} 42... Rc5 {[%clk 0:00:07.9]} 43. Bd4 {[%clk 0:00:42.3]}
43... Rc4 {[%clk 0:00:08.2]} 44. Be5 {[%clk 0:00:42.6]} 44... Rc5 {[%clk
0:00:08.2]} 45. f4 {[%clk 0:00:42.8]} 45... Rc4 {[%clk 0:00:06.1]} 46. Ra8
{[%clk 0:00:41.9]} 46... Rxe4 {[%clk 0:00:04.7]} 47. Ra7 {[%clk 0:00:42.7]}
47... Re3+ {[%clk 0:00:03.7]} 48. Kh2 {[%clk 0:00:42.5]} 48... Rb3 {[%clk
0:00:03]} 49. Kg1 {[%clk 0:00:43.4]} 49... Rb5 {[%clk 0:00:00.8]} 50. Kf2 {[%clk
0:00:42.9]} 50... Rd5 {[%clk 0:00:01.4]} 51. Ke3 {[%clk 0:00:42.1]} 51... Rb5
{[%clk 0:00:01.8]} 52. Kd4 {[%clk 0:00:42.4]} 52... Rb4+ {[%clk 0:00:02]} 53.
Kc3 {[%clk 0:00:42.7]} 53... Rb5 {[%clk 0:00:01.8]} 54. Kc4 {[%clk 0:00:42.9]}
54... Rd5 {[%clk 0:00:02]} 55. Rxf7 {[%clk 0:00:42.5]} 55... Kxf7 {[%clk
0:00:01.4]} 56. Kc3 {[%clk 0:00:43.4]} 56... g6 {[%clk 0:00:01.5]} 57. Kc4
{[%clk 0:00:40.7]} 57... Ke8 {[%clk 0:00:01.8]} 58. g3 {[%clk 0:00:41.2]} 58...
Kd7 {[%clk 0:00:02.2]} 59. Kc3 {[%clk 0:00:42.1]} 59... Kc6 {[%clk 0:00:02.5]}
60. Kc4 {[%clk 0:00:41.9]} 60... Rc5+ {[%clk 0:00:02.6]} 61. Kd4 {[%clk
0:00:42.1]} 61... Ra5 {[%clk 0:00:02.8]} 62. Ke4 {[%clk 0:00:43]} 62... Ra3
{[%clk 0:00:02.8]} 63. Kd4 {[%clk 0:00:43.6]} 63... Ra4+ {[%clk 0:00:02.4]} 64.
Ke3 {[%clk 0:00:43.8]} 64... Kd5 {[%clk 0:00:02.8]} 65. Kf3 {[%clk 0:00:44.1]}
65... Ra3+ {[%clk 0:00:03.1]} 66. Kg2 {[%clk 0:00:44.6]} 66... Ke4 {[%clk
0:00:03.6]} 0-1

[Event "Late-Titled-Tuesday-Blitz-May-14-2024"]
[Site "Chess.com"]
[Date "2024.05.14"]
[Round "5"]
[White "OriTaichman"]
[Black "OK97"]
[Result "0-1"]
[WhiteElo "2639"]
[BlackElo "2886"]
[TimeControl "180+1"]
[EndTime "14:56:46 PDT"]
[Termination "OK97 won by resignation"]

1. e4 {[%clk 0:02:55.9]} 1... c5 {[%clk 0:02:59.9]} 2. Nf3 {[%clk 0:02:53.9]}
2... a6 {[%clk 0:02:59.9]} 3. c4 {[%clk 0:02:53.4]} 3... Nc6 {[%clk 0:02:59.8]}
4. d4 {[%clk 0:02:52.9]} 4... cxd4 {[%clk 0:02:59.6]} 5. Nxd4 {[%clk 0:02:53.8]}
5... Nf6 {[%clk 0:03:00.1]} 6. Nc3 {[%clk 0:02:53.8]} 6... e5 {[%clk 0:03:00.3]}
7. Nc2 {[%clk 0:02:50.1]} 7... Bc5 {[%clk 0:02:59.8]} 8. Be2 {[%clk 0:02:42.5]}
8... O-O {[%clk 0:02:59.1]} 9. O-O {[%clk 0:02:41.5]} 9... d6 {[%clk 0:02:50.5]}
10. Bg5 {[%clk 0:02:32.9]} 10... h6 {[%clk 0:02:50.5]} 11. Bxf6 {[%clk
0:02:32.6]} 11... Qxf6 {[%clk 0:02:50]} 12. Nd5 {[%clk 0:02:33.2]} 12... Qd8
{[%clk 0:02:40.9]} 13. Bg4 {[%clk 0:02:27.6]} 13... Be6 {[%clk 0:02:36.5]} 14.
Kh1 {[%clk 0:02:21.7]} 14... Rc8 {[%clk 0:02:17.5]} 15. f3 {[%clk 0:02:00.1]}
15... Qg5 {[%clk 0:02:02.1]} 16. b4 {[%clk 0:01:47.7]} 16... Ba7 {[%clk
0:01:54.5]} 17. Qc1 {[%clk 0:01:42.1]} 17... Qh4 {[%clk 0:01:18]} 18. g3 {[%clk
0:01:37.5]} 18... Qd8 {[%clk 0:01:17.2]} 19. Bf5 {[%clk 0:01:25.8]} 19... Nd4
{[%clk 0:01:07.1]} 20. Nxd4 {[%clk 0:01:20.5]} 20... Bxd4 {[%clk 0:01:08]} 21.
Rb1 {[%clk 0:01:14.8]} 21... b5 {[%clk 0:01:07.8]} 22. Qa3 {[%clk 0:01:09.2]}
22... bxc4 {[%clk 0:00:56.8]} 23. Qxa6 {[%clk 0:01:08.2]} 23... c3 {[%clk
0:00:53.3]} 24. Bxe6 {[%clk 0:00:50.7]} 24... Ra8 {[%clk 0:00:44.5]} 25. Bxf7+
{[%clk 0:00:25]} 25... Rxf7 {[%clk 0:00:45.4]} 26. Qc4 {[%clk 0:00:20.8]} 26...
Kh7 {[%clk 0:00:41.6]} 27. Rbc1 {[%clk 0:00:13.2]} 27... Rc8 {[%clk 0:00:34.7]}
28. Qb3 {[%clk 0:00:13.5]} 28... Qg5 {[%clk 0:00:28.6]} 29. Nxc3 {[%clk
0:00:12.5]} 29... Rfc7 {[%clk 0:00:26.9]} 30. f4 {[%clk 0:00:11.4]} 30... Qh5
{[%clk 0:00:17.2]} 31. b5 {[%clk 0:00:04.1]} 31... Rxc3 {[%clk 0:00:16.7]} 32.
Rxc3 {[%clk 0:00:04.2]} 32... Rxc3 {[%clk 0:00:17.3]} 33. Qd1 {[%clk 0:00:04.5]}
33... Qxd1 {[%clk 0:00:04.7]} 34. Rxd1 {[%clk 0:00:05.4]} 34... Rc2 {[%clk
0:00:04.6]} 35. b6 {[%clk 0:00:05.4]} 35... Bxb6 {[%clk 0:00:04.2]} 36. Rxd6
{[%clk 0:00:05.7]} 36... Bd4 {[%clk 0:00:04.5]} 37. fxe5 {[%clk 0:00:05.4]}
37... Bxe5 {[%clk 0:00:04.8]} 38. Ra6 {[%clk 0:00:05.5]} 38... Re2 {[%clk
0:00:04.5]} 39. Ra4 {[%clk 0:00:05.1]} 39... Kg6 {[%clk 0:00:04.7]} 40. Kg1
{[%clk 0:00:05.6]} 40... Rd2 {[%clk 0:00:04.6]} 41. Ra6+ {[%clk 0:00:04.4]}
41... Kf7 {[%clk 0:00:04.9]} 42. a4 {[%clk 0:00:04.9]} 42... Bd4+ {[%clk
0:00:05]} 43. Kh1 {[%clk 0:00:05.1]} 43... Re2 {[%clk 0:00:04.3]} 44. a5 {[%clk
0:00:03.5]} 44... Rxe4 {[%clk 0:00:04.9]} 45. Kg2 {[%clk 0:00:02.9]} 45... Re2+
{[%clk 0:00:04.8]} 46. Kf3 {[%clk 0:00:02.5]} 46... Rxh2 {[%clk 0:00:04.8]} 47.
Rd6 {[%clk 0:00:03]} 47... Bg1 {[%clk 0:00:04.8]} 48. a6 {[%clk 0:00:02.3]}
48... Ra2 {[%clk 0:00:04.5]} 49. Rc6 {[%clk 0:00:01.6]} 49... Bd4 {[%clk
0:00:04.8]} 50. Ke4 {[%clk 0:00:01.5]} 50... Bf2 {[%clk 0:00:05.2]} 51. g4
{[%clk 0:00:01.4]} 51... Kg8 {[%clk 0:00:04.8]} 52. Kf5 {[%clk 0:00:01.5]} 52...
Kh7 {[%clk 0:00:05.2]} 53. g5 {[%clk 0:00:01.6]} 53... Ra5+ {[%clk 0:00:04.9]}
54. Kf4 {[%clk 0:00:02]} 54... Rxg5 {[%clk 0:00:05.2]} 55. Rc7 {[%clk
0:00:02.2]} 55... Bg3+ {[%clk 0:00:05.5]} 56. Kf3 {[%clk 0:00:02]} 56... Bxc7
{[%clk 0:00:06.1]} 57. a7 {[%clk 0:00:02.9]} 57... Rf5+ {[%clk 0:00:06.5]} 0-1

[Event "Late-Titled-Tuesday-Blitz-May-14-2024"]
[Site "Chess.com"]
[Date "2024.05.14"]
[Round "5"]
[White "s-dshubin"]
[Black "MikeSailer"]
[Result "1-0"]
[WhiteElo "2320"]
[BlackElo "2056"]
[TimeControl "180+1"]
[EndTime "14:56:50 PDT"]
[Termination "s-dshubin won on time"]

1. e4 {[%clk 0:03:00.9]} 1... d5 {[%clk 0:02:59]} 2. exd5 {[%clk 0:02:59.7]}
2... Qxd5 {[%clk 0:02:57.2]} 3. Nc3 {[%clk 0:02:59.5]} 3... Qd6 {[%clk
0:02:56.2]} 4. Nf3 {[%clk 0:02:45.9]} 4... c6 {[%clk 0:02:52.7]} 5. d4 {[%clk
0:02:41.1]} 5... Bg4 {[%clk 0:02:50.4]} 6. Be2 {[%clk 0:02:41]} 6... Nf6 {[%clk
0:02:49.2]} 7. O-O {[%clk 0:02:41]} 7... e6 {[%clk 0:02:49.3]} 8. Ne5 {[%clk
0:02:28.1]} 8... Bxe2 {[%clk 0:02:48.3]} 9. Qxe2 {[%clk 0:02:29]} 9... Nbd7
{[%clk 0:02:47.5]} 10. Nxd7 {[%clk 0:02:22.8]} 10... Qxd7 {[%clk 0:02:45.6]} 11.
Be3 {[%clk 0:02:11.3]} 11... Bd6 {[%clk 0:02:44.7]} 12. Rad1 {[%clk 0:02:01.7]}
12... O-O {[%clk 0:02:43.4]} 13. Qf3 {[%clk 0:02:01.1]} 13... Nd5 {[%clk
0:02:37.5]} 14. Nxd5 {[%clk 0:02:00.5]} 14... cxd5 {[%clk 0:02:37.3]} 15. Bf4
{[%clk 0:01:57.4]} 15... Be7 {[%clk 0:02:18.8]} 16. Rd3 {[%clk 0:01:50.6]} 16...
b5 {[%clk 0:02:18.1]} 17. Qh5 {[%clk 0:01:48.1]} 17... f5 {[%clk 0:01:25.1]} 18.
Rh3 {[%clk 0:01:42]} 18... h6 {[%clk 0:01:23.8]} 19. Bxh6 {[%clk 0:01:41.2]}
19... Bf6 {[%clk 0:01:14.1]} 20. Be3 {[%clk 0:01:25.3]} 20... Rac8 {[%clk
0:01:12.8]} 21. c3 {[%clk 0:01:21.6]} 21... b4 {[%clk 0:01:12.7]} 22. Bg5 {[%clk
0:01:15]} 22... bxc3 {[%clk 0:01:05.1]} 23. bxc3 {[%clk 0:01:14.6]} 23... Bxg5
{[%clk 0:01:03.7]} 24. Qxg5 {[%clk 0:01:14.5]} 24... Rf6 {[%clk 0:00:56.1]} 25.
Rg3 {[%clk 0:01:08.3]} 25... Kf7 {[%clk 0:00:43.5]} 26. Qh5+ {[%clk 0:01:05.8]}
26... Kg8 {[%clk 0:00:43.1]} 27. Qg5 {[%clk 0:01:05.1]} 27... Qf7 {[%clk
0:00:35.8]} 28. h4 {[%clk 0:01:04.4]} 28... Rb8 {[%clk 0:00:25.2]} 29. h5 {[%clk
0:01:01.5]} 29... Kh7 {[%clk 0:00:25.5]} 30. Kh2 {[%clk 0:00:50.7]} 30... Rh6
{[%clk 0:00:24.7]} 31. Rh3 {[%clk 0:00:51.2]} 31... Rb2 {[%clk 0:00:22.7]} 32.
a4 {[%clk 0:00:31.2]} 32... a5 {[%clk 0:00:22.6]} 33. Qd8 {[%clk 0:00:28.8]}
33... Rxh5 {[%clk 0:00:17.1]} 34. Rxh5+ {[%clk 0:00:27.6]} 34... Qxh5+ {[%clk
0:00:17.6]} 35. Kg1 {[%clk 0:00:28.2]} 35... Rd2 {[%clk 0:00:05]} 36. Qxa5
{[%clk 0:00:23.3]} 36... Rd3 {[%clk 0:00:05]} 37. Qb6 {[%clk 0:00:16.6]} 37...
Qh6 {[%clk 0:00:04.9]} 38. Qc7 {[%clk 0:00:15]} 38... f4 {[%clk 0:00:04.1]} 39.
Re1 {[%clk 0:00:13.2]} 39... f3 {[%clk 0:00:03.8]} 40. Qh2 {[%clk 0:00:10]}
40... Qxh2+ {[%clk 0:00:03.8]} 41. Kxh2 {[%clk 0:00:09.9]} 41... fxg2 {[%clk
0:00:04.7]} 42. Kxg2 {[%clk 0:00:10]} 42... Rxc3 {[%clk 0:00:05.6]} 43. Rxe6
{[%clk 0:00:10.1]} 43... Rc4 {[%clk 0:00:06.5]} 44. Rd6 {[%clk 0:00:08.8]} 44...
Rxd4 {[%clk 0:00:06.6]} 45. a5 {[%clk 0:00:09]} 45... Kg8 {[%clk 0:00:05.6]} 46.
a6 {[%clk 0:00:09]} 46... Ra4 {[%clk 0:00:05.6]} 47. Rd8+ {[%clk 0:00:08.5]}
47... Kf7 {[%clk 0:00:05.9]} 48. Rd7+ {[%clk 0:00:08.4]} 48... Kf6 {[%clk
0:00:05.7]} 49. a7 {[%clk 0:00:08]} 49... Ke6 {[%clk 0:00:05.2]} 50. Rxg7 {[%clk
0:00:07.6]} 50... Ke5 {[%clk 0:00:05.8]} 51. Kf3 {[%clk 0:00:07.2]} 51... Kd4
{[%clk 0:00:05.8]} 52. Ke2 {[%clk 0:00:07.3]} 52... Ra2+ {[%clk 0:00:05.4]} 53.
Kd1 {[%clk 0:00:07.1]} 53... Kd3 {[%clk 0:00:05.1]} 54. Kc1 {[%clk 0:00:07.2]}
54... d4 {[%clk 0:00:05.1]} 55. f4 {[%clk 0:00:07.1]} 55... Kc3 {[%clk 0:00:04]}
56. Rc7+ {[%clk 0:00:06.6]} 56... Kd3 {[%clk 0:00:04.9]} 57. f5 {[%clk
0:00:06.8]} 1-0

[Event "Late-Titled-Tuesday-Blitz-May-14-2024"]
[Site "Chess.com"]
[Date "2024.05.14"]
[Round "5"]
[White "Ramil_Faizrakhmanov"]
[Black "Cipy77"]
[Result "0-1"]
[WhiteElo "2851"]
[BlackElo "2653"]
[TimeControl "180+1"]
[EndTime "14:56:51 PDT"]
[Termination "Cipy77 won by resignation"]

1. d4 {[%clk 0:03:00]} 1... d5 {[%clk 0:02:57.7]} 2. c4 {[%clk 0:03:00.4]} 2...
c6 {[%clk 0:02:58]} 3. Nf3 {[%clk 0:02:59.5]} 3... Nf6 {[%clk 0:02:58]} 4. Nc3
{[%clk 0:03:00.1]} 4... dxc4 {[%clk 0:02:57.7]} 5. a4 {[%clk 0:02:59.5]} 5...
Bf5 {[%clk 0:02:57.9]} 6. Ne5 {[%clk 0:02:59]} 6... Nbd7 {[%clk 0:02:47.6]} 7.
Nxc4 {[%clk 0:02:58.6]} 7... Qc7 {[%clk 0:02:48.3]} 8. g3 {[%clk 0:02:57.7]}
8... e5 {[%clk 0:02:48.3]} 9. dxe5 {[%clk 0:02:57.4]} 9... Nxe5 {[%clk
0:02:49.2]} 10. Bf4 {[%clk 0:02:56.3]} 10... Nfd7 {[%clk 0:02:48.4]} 11. Nxe5
{[%clk 0:02:52.3]} 11... Nxe5 {[%clk 0:02:48]} 12. Bg2 {[%clk 0:02:52.4]} 12...
Rd8 {[%clk 0:02:44]} 13. Qb3 {[%clk 0:02:50.7]} 13... Bd6 {[%clk 0:02:38.7]} 14.
O-O {[%clk 0:02:44.5]} 14... O-O {[%clk 0:02:38.6]} 15. Rac1 {[%clk 0:02:42.5]}
15... Be6 {[%clk 0:02:36.5]} 16. Qc2 {[%clk 0:02:42.1]} 16... Nc4 {[%clk
0:02:36.5]} 17. Bxd6 {[%clk 0:02:37.5]} 17... Qxd6 {[%clk 0:02:37.1]} 18. b3
{[%clk 0:02:30.3]} 18... Ne5 {[%clk 0:02:30.4]} 19. Rfd1 {[%clk 0:02:24.8]}
19... Qb4 {[%clk 0:02:30]} 20. Rxd8 {[%clk 0:02:15.1]} 20... Rxd8 {[%clk
0:02:30.9]} 21. Rb1 {[%clk 0:02:15]} 21... h6 {[%clk 0:02:16.5]} 22. h3 {[%clk
0:02:14]} 22... a5 {[%clk 0:02:13.6]} 23. f4 {[%clk 0:02:03.6]} 23... Nd7 {[%clk
0:02:12.2]} 24. f5 {[%clk 0:01:59]} 24... Qc5+ {[%clk 0:02:08.6]} 25. Kh2 {[%clk
0:01:58.6]} 25... Bxf5 {[%clk 0:02:08]} 26. e4 {[%clk 0:01:53.1]} 26... Bg6
{[%clk 0:02:08.2]} 27. Rd1 {[%clk 0:01:51.5]} 27... Qe5 {[%clk 0:02:02.3]} 28.
Ne2 {[%clk 0:01:45.7]} 28... Qf6 {[%clk 0:01:48.3]} 29. Qd2 {[%clk 0:01:41.2]}
29... Qe5 {[%clk 0:01:34.4]} 30. Nf4 {[%clk 0:01:34.3]} 30... Bxe4 {[%clk
0:01:30.2]} 31. Bxe4 {[%clk 0:01:28.5]} 31... Qxe4 {[%clk 0:01:29.6]} 32. Qxa5
{[%clk 0:01:27.2]} 32... b6 {[%clk 0:01:10.9]} 33. Qc3 {[%clk 0:01:20.1]} 33...
g6 {[%clk 0:00:53.6]} 34. h4 {[%clk 0:01:14.1]} 34... h5 {[%clk 0:00:49.6]} 35.
Rd6 {[%clk 0:01:11]} 35... Kh7 {[%clk 0:00:44]} 36. Qd2 {[%clk 0:00:53.5]} 36...
Ne5 {[%clk 0:00:42.1]} 37. Rxd8 {[%clk 0:00:23.1]} 37... Nf3+ {[%clk 0:00:41.7]}
38. Kh3 {[%clk 0:00:21.9]} 38... Nxd2 {[%clk 0:00:39.5]} 39. Rxd2 {[%clk
0:00:22.8]} 39... Qh1+ {[%clk 0:00:39.7]} 40. Rh2 {[%clk 0:00:22.4]} 40... Qb1
{[%clk 0:00:37.3]} 41. Rd2 {[%clk 0:00:13.7]} 41... Qxb3 {[%clk 0:00:36.3]} 42.
Rd7 {[%clk 0:00:13.3]} 42... Kg7 {[%clk 0:00:35.8]} 43. Rb7 {[%clk 0:00:12.7]}
43... c5 {[%clk 0:00:32.8]} 44. a5 {[%clk 0:00:11.8]} 44... Qd1 {[%clk
0:00:31.6]} 45. Kh2 {[%clk 0:00:10.5]} 45... Qd2+ {[%clk 0:00:30.5]} 46. Kh3
{[%clk 0:00:10.1]} 46... Qxa5 {[%clk 0:00:30.5]} 47. Ne6+ {[%clk 0:00:09.8]}
47... Kg8 {[%clk 0:00:27.3]} 48. Ng5 {[%clk 0:00:10.7]} 48... Qa2 {[%clk
0:00:25]} 49. Rxb6 {[%clk 0:00:10.7]} 49... c4 {[%clk 0:00:23]} 50. Rc6 {[%clk
0:00:09]} 50... Qb1 {[%clk 0:00:20.7]} 51. Rc8+ {[%clk 0:00:07.4]} 51... Kg7
{[%clk 0:00:20.5]} 52. Kh2 {[%clk 0:00:07.7]} 52... Qc2+ {[%clk 0:00:18.8]} 53.
Kg1 {[%clk 0:00:07.5]} 53... Qd1+ {[%clk 0:00:18.3]} 54. Kh2 {[%clk 0:00:07.6]}
54... Qe2+ {[%clk 0:00:18.3]} 55. Kg1 {[%clk 0:00:07.9]} 55... Qd1+ {[%clk
0:00:18]} 56. Kh2 {[%clk 0:00:07.7]} 56... Qd2+ {[%clk 0:00:18.7]} 57. Kg1
{[%clk 0:00:07.8]} 57... c3 {[%clk 0:00:19.3]} 58. Rc7 {[%clk 0:00:07.9]} 58...
c2 {[%clk 0:00:18.4]} 59. Rxf7+ {[%clk 0:00:06.3]} 59... Kg8 {[%clk 0:00:18.6]}
60. Rc7 {[%clk 0:00:06.5]} 60... Qd1+ {[%clk 0:00:17.4]} 61. Kg2 {[%clk
0:00:06.3]} 61... c1=Q {[%clk 0:00:18.1]} 0-1